[Event "*** Qualifier 3: Titled Tuesday 3|2 Blitz"]
[Site "Chess.com"]
[Date "2017.04.18"]
[Round "1"]
[White "gmcorrales"]
[Black "chessking2151"]
[Result "1-0"]
[WhiteElo "2625"]
[BlackElo "2324"]
[TimeControl "180+2"]
[EndTime "13:09:16 PDT"]
[Termination "gmcorrales won by resignation"]

1. e4 {[%clk 0:02:52.9]} 1... e5 {[%clk 0:02:59.1]} 2. Nf3 {[%clk 0:02:53.8]}
2... Nc6 {[%clk 0:02:59.3]} 3. Bb5 {[%clk 0:02:54.5]} 3... f5 {[%clk 0:02:48.6]}
4. Nc3 {[%clk 0:02:48.7]} 4... fxe4 {[%clk 0:02:48.7]} 5. Nxe4 {[%clk
0:02:49.3]} 5... Nf6 {[%clk 0:02:49.1]} 6. Bxc6 {[%clk 0:02:49.9]} 6... dxc6
{[%clk 0:02:23.9]} 7. Qe2 {[%clk 0:02:50]} 7... Bf5 {[%clk 0:02:16.1]} 8. d3
{[%clk 0:02:43.3]} 8... Nxe4 {[%clk 0:02:05.3]} 9. dxe4 {[%clk 0:02:43.8]} 9...
Bg4 {[%clk 0:02:06.9]} 10. h3 {[%clk 0:02:42.7]} 10... Bxf3 {[%clk 0:02:05.8]}
11. Qxf3 {[%clk 0:02:43.6]} 11... Qf6 {[%clk 0:02:05.9]} 12. Qxf6 {[%clk
0:02:43.7]} 12... gxf6 {[%clk 0:02:06.3]} 13. Ke2 {[%clk 0:02:44.8]} 13... O-O-O
{[%clk 0:02:07.1]} 14. Be3 {[%clk 0:02:45.5]} 14... h5 {[%clk 0:02:06]} 15. Rad1
{[%clk 0:02:44.3]} 15... Re8 {[%clk 0:01:42.7]} 16. g4 {[%clk 0:02:43.5]} 16...
Bh6 {[%clk 0:01:35.2]} 17. Bxh6 {[%clk 0:02:38.4]} 17... Rxh6 {[%clk 0:01:35.3]}
18. Rhg1 {[%clk 0:02:39.3]} 18... hxg4 {[%clk 0:01:24.2]} 19. hxg4 {[%clk
0:02:39.4]} 19... Rg8 {[%clk 0:01:25.3]} 20. Kf3 {[%clk 0:02:33.8]} 20... Rh3+
{[%clk 0:01:23.3]} 21. Kg2 {[%clk 0:02:34.5]} 21... Rh4 {[%clk 0:01:19.2]} 22.
f3 {[%clk 0:02:35.4]} 22... Rgh8 {[%clk 0:01:20]} 23. Rh1 {[%clk 0:02:35.7]}
23... Rxh1 {[%clk 0:01:09.6]} 24. Rxh1 {[%clk 0:02:35.8]} 24... Rxh1 {[%clk
0:01:11.2]} 25. Kxh1 {[%clk 0:02:36.5]} 25... Kd7 {[%clk 0:01:12.5]} 26. Kg2
{[%clk 0:02:37.4]} 26... Ke7 {[%clk 0:01:14.1]} 27. Kg3 {[%clk 0:02:38.3]} 27...
Kf7 {[%clk 0:01:10.6]} 28. f4 {[%clk 0:02:38.8]} 28... exf4+ {[%clk 0:00:58.7]}
29. Kxf4 {[%clk 0:02:39.1]} 29... Ke6 {[%clk 0:00:59.6]} 30. c4 {[%clk
0:02:33.2]} 30... c5 {[%clk 0:00:59.8]} 31. b3 {[%clk 0:02:29.8]} 31... c6
{[%clk 0:00:49.9]} 32. a4 {[%clk 0:02:27]} 32... b6 {[%clk 0:00:50.1]} 33. Kf3
{[%clk 0:01:53.4]} 33... Ke5 {[%clk 0:00:49.6]} 34. Ke3 {[%clk 0:01:54.2]} 34...
a6 {[%clk 0:00:46.4]} 35. Kf3 {[%clk 0:01:55]} 35... b5 {[%clk 0:00:17.2]} 36.
Ke3 {[%clk 0:01:55.3]} 36... bxc4 {[%clk 0:00:06.5]} 37. bxc4 {[%clk 0:01:55.5]}
37... a5 {[%clk 0:00:08]} 38. Kf3 {[%clk 0:01:53.2]} 38... Kd4 {[%clk
0:00:04.4]} 39. Kf4 {[%clk 0:01:53.9]} 39... Kxc4 {[%clk 0:00:05.7]} 40. e5
{[%clk 0:01:29.7]} 40... fxe5+ {[%clk 0:00:06.2]} 41. Ke4 {[%clk 0:01:27.7]}
41... Kb4 {[%clk 0:00:04.9]} 42. g5 {[%clk 0:01:27]} 42... c4 {[%clk 0:00:06.4]}
43. g6 {[%clk 0:01:27.9]} 43... c3 {[%clk 0:00:07.9]} 44. Kd3 {[%clk 0:01:27.5]}
44... e4+ {[%clk 0:00:07.5]} 45. Kc2 {[%clk 0:01:27.7]} 45... e3 {[%clk
0:00:09.1]} 46. Kd3 {[%clk 0:01:24.3]} 46... e2 {[%clk 0:00:05.3]} 47. Kxe2
{[%clk 0:01:25.1]} 47... Kb3 {[%clk 0:00:07.2]} 48. g7 {[%clk 0:01:26]} 48...
Kb2 {[%clk 0:00:09.1]} 49. g8=Q {[%clk 0:01:26.4]} 49... c2 {[%clk 0:00:11]} 50.
Qg7+ {[%clk 0:01:26.5]} 50... Kb1 {[%clk 0:00:11.5]} 51. Qg6 {[%clk 0:01:27.1]}
51... Kb2 {[%clk 0:00:13]} 52. Qf6+ {[%clk 0:01:27.9]} 52... Kb1 {[%clk
0:00:12.1]} 53. Qf5 {[%clk 0:01:27.4]} 53... Kb2 {[%clk 0:00:13.6]} 54. Qe5+
{[%clk 0:01:22.9]} 54... Kb1 {[%clk 0:00:14.8]} 55. Qe4 {[%clk 0:01:23.7]} 55...
Kb2 {[%clk 0:00:16.3]} 56. Qd4+ {[%clk 0:01:24.5]} 56... Kb1 {[%clk 0:00:17.9]}
57. Qd3 {[%clk 0:01:25.4]} 57... Kb2 {[%clk 0:00:19.5]} 58. Qd4+ {[%clk
0:01:20.8]} 58... Kb1 {[%clk 0:00:20.4]} 59. Qb6+ {[%clk 0:01:21.3]} 59... Kc1
{[%clk 0:00:15.1]} 60. Qxa5 {[%clk 0:01:20.9]} 60... Kb2 {[%clk 0:00:14.8]} 61.
Qb4+ {[%clk 0:01:21.4]} 61... Ka2 {[%clk 0:00:14.7]} 62. Kd2 {[%clk 0:01:20.8]}
62... c5 {[%clk 0:00:12.9]} 63. Qc4+ {[%clk 0:01:18.7]} 1-0

[Event "*** Qualifier 3: Titled Tuesday 3|2 Blitz"]
[Site "Chess.com"]
[Date "2017.04.18"]
[Round "1"]
[White "Grebeniuk-S"]
[Black "Jamaladam12200620"]
[Result "1-0"]
[WhiteElo "2403"]
[BlackElo "1970"]
[TimeControl "180+2"]
[EndTime "13:09:16 PDT"]
[Termination "Grebeniuk-S won by resignation"]

1. d4 {[%clk 0:03:01.9]} 1... Nf6 {[%clk 0:03:00]} 2. Nf3 {[%clk 0:03:03.1]}
2... g6 {[%clk 0:03:00]} 3. Bg5 {[%clk 0:03:03.7]} 3... Bg7 {[%clk 0:02:59.9]}
4. Nbd2 {[%clk 0:03:05.1]} 4... d5 {[%clk 0:03:00]} 5. e3 {[%clk 0:03:04.1]}
5... c6 {[%clk 0:02:57.5]} 6. c4 {[%clk 0:03:04.6]} 6... dxc4 {[%clk 0:02:55.9]}
7. Bxc4 {[%clk 0:03:04.7]} 7... b5 {[%clk 0:02:56.9]} 8. Bb3 {[%clk 0:02:50.4]}
8... Bb7 {[%clk 0:02:55.3]} 9. O-O {[%clk 0:02:42.1]} 9... Nbd7 {[%clk
0:02:55.4]} 10. a4 {[%clk 0:02:42.5]} 10... a6 {[%clk 0:02:55.2]} 11. Qe2 {[%clk
0:02:43.3]} 11... Qb6 {[%clk 0:02:47.9]} 12. Rfc1 {[%clk 0:02:10.1]} 12... O-O
{[%clk 0:02:46.4]} 13. a5 {[%clk 0:02:01.4]} 13... Qc7 {[%clk 0:02:40.4]} 14.
Bf4 {[%clk 0:02:00.2]} 14... Qd8 {[%clk 0:02:38.3]} 15. Ba2 {[%clk 0:01:53.3]}
15... Nd5 {[%clk 0:02:17.9]} 16. Bg3 {[%clk 0:01:53.5]} 16... Rc8 {[%clk
0:02:09.4]} 17. Ne4 {[%clk 0:01:51.9]} 17... N7f6 {[%clk 0:02:05]} 18. Nc5
{[%clk 0:01:52.4]} 18... Rc7 {[%clk 0:01:47.3]} 19. Bxc7 {[%clk 0:01:52.1]}
19... Qxc7 {[%clk 0:01:47.9]} 20. e4 {[%clk 0:01:43.5]} 20... Nf4 {[%clk
0:01:39.9]} 21. Qd2 {[%clk 0:01:34.2]} 21... Ng4 {[%clk 0:01:37.7]} 22. Nxb7
{[%clk 0:01:27.7]} 22... Ne6 {[%clk 0:01:01.9]} 23. h3 {[%clk 0:01:08.8]} 23...
Nxd4 {[%clk 0:00:44.7]} 24. hxg4 {[%clk 0:01:02.9]} 24... Nxf3+ {[%clk
0:00:44.9]} 25. gxf3 {[%clk 0:01:04.8]} 25... Qxb7 {[%clk 0:00:45.8]} 26. Rd1
{[%clk 0:00:51.1]} 26... c5 {[%clk 0:00:34.8]} 27. Bd5 {[%clk 0:00:51.2]} 27...
Qc7 {[%clk 0:00:34.5]} 28. Rac1 {[%clk 0:00:50.7]} 28... e6 {[%clk 0:00:33.7]}
29. Ba2 {[%clk 0:00:49.9]} 29... c4 {[%clk 0:00:32.8]} 30. Qd6 {[%clk
0:00:43.6]} 30... Qxa5 {[%clk 0:00:31.5]} 31. Qa3 {[%clk 0:00:39.2]} 31... Qxa3
{[%clk 0:00:26.4]} 32. bxa3 {[%clk 0:00:39.7]} 32... Bb2 {[%clk 0:00:27.6]} 33.
Rb1 {[%clk 0:00:33.1]} 33... Bxa3 {[%clk 0:00:28]} 34. Kf1 {[%clk 0:00:24.8]}
34... Rc8 {[%clk 0:00:28.4]} 35. Ke2 {[%clk 0:00:25.2]} 35... b4 {[%clk
0:00:28.9]} 36. Rd2 {[%clk 0:00:17]} 36... a5 {[%clk 0:00:27.6]} 37. Rc2 {[%clk
0:00:17.3]} 37... c3 {[%clk 0:00:23.3]} 38. Bb3 {[%clk 0:00:18.7]} 38... Rd8
{[%clk 0:00:21.3]} 39. Rd1 {[%clk 0:00:19.5]} 39... Ra8 {[%clk 0:00:19.8]} 40.
Ba4 {[%clk 0:00:20.3]} 40... Rb8 {[%clk 0:00:20.4]} 41. Rb1 {[%clk 0:00:21.8]}
41... Kf8 {[%clk 0:00:20.2]} 42. f4 {[%clk 0:00:23.1]} 42... Ke7 {[%clk
0:00:21.2]} 43. g5 {[%clk 0:00:24.5]} 43... Kd6 {[%clk 0:00:21.9]} 44. Rxc3
{[%clk 0:00:24]} 44... bxc3 {[%clk 0:00:18.4]} 45. Rxb8 {[%clk 0:00:24.7]} 45...
Kc5 {[%clk 0:00:18.8]} 46. Kd3 {[%clk 0:00:25.2]} 46... Bb4 {[%clk 0:00:18]} 47.
Rb5+ {[%clk 0:00:26.3]} 47... Kd6 {[%clk 0:00:18.4]} 48. Rb7 {[%clk 0:00:27.4]}
48... f5 {[%clk 0:00:18.1]} 49. gxf6 {[%clk 0:00:28.4]} 49... h5 {[%clk
0:00:18]} 50. f7 {[%clk 0:00:29.1]} 1-0

[Event "*** Qualifier 3: Titled Tuesday 3|2 Blitz"]
[Site "Chess.com"]
[Date "2017.04.18"]
[Round "1"]
[White "AllStarShark"]
[Black "JusticeBot"]
[Result "0-1"]
[WhiteElo "2263"]
[BlackElo "2554"]
[TimeControl "180+2"]
[EndTime "13:09:29 PDT"]
[Termination "JusticeBot won on time"]

1. d4 {[%clk 0:03:00.6]} 1... Nf6 {[%clk 0:03:00.1]} 2. Bg5 {[%clk 0:03:00.9]}
2... e6 {[%clk 0:03:00.5]} 3. e4 {[%clk 0:02:50.3]} 3... h6 {[%clk 0:03:01.4]}
4. Bxf6 {[%clk 0:02:50.5]} 4... Qxf6 {[%clk 0:03:03.3]} 5. c3 {[%clk 0:02:51.8]}
5... d6 {[%clk 0:03:04.4]} 6. Bd3 {[%clk 0:02:53]} 6... e5 {[%clk 0:03:03.3]} 7.
Ne2 {[%clk 0:02:53.6]} 7... Nc6 {[%clk 0:02:59.4]} 8. O-O {[%clk 0:02:52.5]}
8... g5 {[%clk 0:02:58.6]} 9. Nd2 {[%clk 0:02:35.3]} 9... Bg7 {[%clk 0:02:42.7]}
10. d5 {[%clk 0:02:35.3]} 10... Ne7 {[%clk 0:02:43.7]} 11. Bb5+ {[%clk 0:02:34]}
11... c6 {[%clk 0:02:40.5]} 12. dxc6 {[%clk 0:02:34.6]} 12... bxc6 {[%clk
0:02:42.4]} 13. Ba4 {[%clk 0:02:34.6]} 13... O-O {[%clk 0:02:43]} 14. Ng3 {[%clk
0:02:24.8]} 14... Rd8 {[%clk 0:02:11.4]} 15. Qe2 {[%clk 0:02:16.7]} 15... Bd7
{[%clk 0:01:16.3]} 16. Rad1 {[%clk 0:02:13.8]} 16... Ng6 {[%clk 0:01:13.6]} 17.
Nh5 {[%clk 0:02:04.4]} 17... Qe6 {[%clk 0:01:07.9]} 18. Bb3 {[%clk 0:02:04.6]}
18... d5 {[%clk 0:01:03.5]} 19. exd5 {[%clk 0:02:01.3]} 19... cxd5 {[%clk
0:01:04.1]} 20. Ne4 {[%clk 0:02:01.7]} 20... Bc6 {[%clk 0:00:58.4]} 21. Neg3
{[%clk 0:01:54.8]} 21... Bf8 {[%clk 0:00:45.3]} 22. Rfe1 {[%clk 0:01:51.4]}
22... Bc5 {[%clk 0:00:26.2]} 23. Ne4 {[%clk 0:01:44.5]} 23... Be7 {[%clk
0:00:26.3]} 24. Qa6 {[%clk 0:01:19.6]} 24... Nf4 {[%clk 0:00:10.7]} 25. Nxf4
{[%clk 0:01:16.9]} 25... gxf4 {[%clk 0:00:12.6]} 26. Nd2 {[%clk 0:01:03.6]}
26... Kh8 {[%clk 0:00:13.5]} 27. Nf3 {[%clk 0:00:38.4]} 27... Rg8 {[%clk
0:00:13.9]} 28. Rxe5 {[%clk 0:00:35.1]} 28... Qg4 {[%clk 0:00:13.8]} 29. Ne1
{[%clk 0:00:28.3]} 29... Bd6 {[%clk 0:00:05.8]} 30. Qxc6 {[%clk 0:00:21.8]}
30... Bxe5 {[%clk 0:00:06.7]} 31. Qxd5 {[%clk 0:00:22.9]} 31... Rae8 {[%clk
0:00:07.8]} 32. h3 {[%clk 0:00:15.4]} 32... Qg5 {[%clk 0:00:07]} 33. Qxf7 {[%clk
0:00:16.2]} 33... Bb8 {[%clk 0:00:06.5]} 34. Qb7 {[%clk 0:00:14.6]} 34... Rg7
{[%clk 0:00:06.8]} 35. Qf3 {[%clk 0:00:15]} 35... Rge7 {[%clk 0:00:06.7]} 36.
Nc2 {[%clk 0:00:15.4]} 36... Qe5 {[%clk 0:00:06.6]} 37. Nd4 {[%clk 0:00:14.5]}
37... Qf6 {[%clk 0:00:06.5]} 38. Kh2 {[%clk 0:00:06.6]} 38... Bc7 {[%clk
0:00:06.7]} 39. Nb5 {[%clk 0:00:04.4]} 39... Bb6 {[%clk 0:00:07.5]} 0-1

[Event "*** Qualifier 3: Titled Tuesday 3|2 Blitz"]
[Site "Chess.com"]
[Date "2017.04.18"]
[Round "1"]
[White "Robin-Side"]
[Black "Alexander_Moskalenko"]
[Result "0-1"]
[WhiteElo "2339"]
[BlackElo "2656"]
[TimeControl "180+2"]
[EndTime "13:09:36 PDT"]
[Termination "Alexander_Moskalenko won by resignation"]

1. e4 {[%clk 0:02:59.6]} 1... c5 {[%clk 0:02:46.3]} 2. Nf3 {[%clk 0:02:59.2]}
2... d6 {[%clk 0:02:47.2]} 3. d4 {[%clk 0:02:58.4]} 3... cxd4 {[%clk 0:02:49.1]}
4. Nxd4 {[%clk 0:02:59.3]} 4... Nf6 {[%clk 0:02:50.7]} 5. Nc3 {[%clk 0:03:00.1]}
5... a6 {[%clk 0:02:50.3]} 6. Be2 {[%clk 0:03:00.3]} 6... g6 {[%clk 0:02:50.4]}
7. O-O {[%clk 0:02:56.6]} 7... Bg7 {[%clk 0:02:52]} 8. Bg5 {[%clk 0:02:54.9]}
8... O-O {[%clk 0:02:33.8]} 9. Re1 {[%clk 0:02:51.7]} 9... b6 {[%clk 0:02:31.8]}
10. Bf1 {[%clk 0:02:42.4]} 10... Bb7 {[%clk 0:02:31.5]} 11. Nd5 {[%clk
0:02:33.2]} 11... Nbd7 {[%clk 0:02:20.4]} 12. c3 {[%clk 0:02:25.1]} 12... h6
{[%clk 0:02:19.2]} 13. Bxf6 {[%clk 0:02:09.4]} 13... Nxf6 {[%clk 0:02:21.1]} 14.
Nc2 {[%clk 0:02:03.2]} 14... Nd7 {[%clk 0:02:17.3]} 15. Kh1 {[%clk 0:01:59.8]}
15... e6 {[%clk 0:02:17.9]} 16. Nf4 {[%clk 0:01:51.2]} 16... Nf6 {[%clk
0:02:13.6]} 17. f3 {[%clk 0:01:48.7]} 17... Qc7 {[%clk 0:02:06.6]} 18. Nd3
{[%clk 0:01:43.7]} 18... Rfd8 {[%clk 0:02:04.6]} 19. Qe2 {[%clk 0:01:36.4]}
19... Nd7 {[%clk 0:02:02.8]} 20. Rad1 {[%clk 0:01:35.2]} 20... b5 {[%clk
0:02:03.8]} 21. Ne3 {[%clk 0:01:26.3]} 21... Rab8 {[%clk 0:02:04.6]} 22. a3
{[%clk 0:01:26.1]} 22... a5 {[%clk 0:02:05.9]} 23. h4 {[%clk 0:01:11.5]} 23...
h5 {[%clk 0:02:05.9]} 24. Nf2 {[%clk 0:01:10.5]} 24... Ne5 {[%clk 0:02:00]} 25.
Nh3 {[%clk 0:01:08.9]} 25... Qe7 {[%clk 0:01:32.8]} 26. Qf2 {[%clk 0:01:06.8]}
26... Bf6 {[%clk 0:01:31.8]} 27. g3 {[%clk 0:01:06.6]} 27... b4 {[%clk 0:01:28]}
28. axb4 {[%clk 0:01:05.8]} 28... axb4 {[%clk 0:01:29.9]} 29. Bg2 {[%clk
0:00:54.9]} 29... bxc3 {[%clk 0:01:30.2]} 30. bxc3 {[%clk 0:00:50.9]} 30... Rbc8
{[%clk 0:01:29.4]} 31. Qb2 {[%clk 0:00:40.5]} 31... Ba6 {[%clk 0:01:25.2]} 32.
Qb6 {[%clk 0:00:19.9]} 32... Rc6 {[%clk 0:01:25.3]} 33. Qa5 {[%clk 0:00:17.4]}
33... Nd3 {[%clk 0:01:16.8]} 34. Rg1 {[%clk 0:00:17.1]} 34... Bxc3 {[%clk
0:01:16.6]} 35. Qa3 {[%clk 0:00:16.8]} 35... Bb4 {[%clk 0:01:12.6]} 36. Qb3
{[%clk 0:00:15.9]} 36... Rc3 {[%clk 0:01:03.1]} 37. Qb1 {[%clk 0:00:16.1]} 37...
Qa7 {[%clk 0:00:57.8]} 38. Rxd3 {[%clk 0:00:08.9]} 38... Rxd3 {[%clk 0:00:56]}
39. Qxb4 {[%clk 0:00:07.7]} 39... Rxe3 {[%clk 0:00:52.2]} 40. Ra1 {[%clk
0:00:08]} 40... Qb7 {[%clk 0:00:44.3]} 41. Qd4 {[%clk 0:00:08.9]} 41... Rb3
{[%clk 0:00:44.2]} 42. Qf6 {[%clk 0:00:09.2]} 42... Rb1+ {[%clk 0:00:31.1]} 43.
Rxb1 {[%clk 0:00:06.3]} 43... Qxb1+ {[%clk 0:00:33]} 44. Kh2 {[%clk 0:00:07.1]}
44... Re8 {[%clk 0:00:32.6]} 45. Ng5 {[%clk 0:00:06.9]} 45... Qb7 {[%clk
0:00:34.1]} 46. Bh3 {[%clk 0:00:04.3]} 46... Qe7 {[%clk 0:00:33.3]} 47. Qa1
{[%clk 0:00:04.5]} 47... Bc8 {[%clk 0:00:31.8]} 48. g4 {[%clk 0:00:04.8]} 48...
hxg4 {[%clk 0:00:31.3]} 49. fxg4 {[%clk 0:00:05.4]} 49... e5 {[%clk 0:00:31.4]}
50. Qc1 {[%clk 0:00:04.4]} 50... Bd7 {[%clk 0:00:30.7]} 51. h5 {[%clk
0:00:05.4]} 51... Rc8 {[%clk 0:00:30.3]} 52. Qg1 {[%clk 0:00:04.9]} 52... Qxg5
{[%clk 0:00:30.5]} 0-1

[Event "*** Qualifier 3: Titled Tuesday 3|2 Blitz"]
[Site "Chess.com"]
[Date "2017.04.18"]
[Round "1"]
[White "Quiet_Desperation"]
[Black "chessdude"]
[Result "1/2-1/2"]
[WhiteElo "2021"]
[BlackElo "2418"]
[TimeControl "180+2"]
[EndTime "13:09:47 PDT"]
[Termination "Game drawn by agreement"]

1. e4 {[%clk 0:03:01.9]} 1... c5 {[%clk 0:03:00]} 2. Nf3 {[%clk 0:03:02.8]} 2...
d6 {[%clk 0:03:01.1]} 3. d4 {[%clk 0:03:02.2]} 3... cxd4 {[%clk 0:03:03]} 4.
Nxd4 {[%clk 0:03:03.1]} 4... Nf6 {[%clk 0:03:04.3]} 5. Nc3 {[%clk 0:03:03.8]}
5... a6 {[%clk 0:03:05.7]} 6. Be3 {[%clk 0:03:04.1]} 6... e5 {[%clk 0:03:06.4]}
7. Nb3 {[%clk 0:03:05.1]} 7... Be6 {[%clk 0:03:06.5]} 8. f3 {[%clk 0:03:06.4]}
8... h5 {[%clk 0:03:07.3]} 9. Qd2 {[%clk 0:03:07.3]} 9... Nbd7 {[%clk
0:03:07.9]} 10. O-O-O {[%clk 0:03:07.8]} 10... Rc8 {[%clk 0:03:08.9]} 11. Nd5
{[%clk 0:03:08.5]} 11... Bxd5 {[%clk 0:02:39.8]} 12. exd5 {[%clk 0:02:58.8]}
12... Nb6 {[%clk 0:02:36]} 13. Bxb6 {[%clk 0:02:55.3]} 13... Qxb6 {[%clk
0:02:36.4]} 14. c4 {[%clk 0:02:55.8]} 14... g6 {[%clk 0:02:34.9]} 15. Kb1 {[%clk
0:02:56.7]} 15... Bh6 {[%clk 0:02:35.6]} 16. Qa5 {[%clk 0:02:50.4]} 16... Qxa5
{[%clk 0:02:31.7]} 17. Nxa5 {[%clk 0:02:50.7]} 17... Rc7 {[%clk 0:02:31.2]} 18.
Bd3 {[%clk 0:02:40.9]} 18... O-O {[%clk 0:02:30.9]} 19. Rhe1 {[%clk 0:02:25.3]}
19... h4 {[%clk 0:02:28.8]} 20. Re2 {[%clk 0:02:12.7]} 20... Nh5 {[%clk
0:02:27.7]} 21. Re4 {[%clk 0:01:40.8]} 21... Bf4 {[%clk 0:02:22.8]} 22. b4
{[%clk 0:01:29.5]} 22... f5 {[%clk 0:01:54.3]} 23. Re2 {[%clk 0:01:21.8]} 23...
Bxh2 {[%clk 0:01:50.3]} 24. a4 {[%clk 0:01:14.5]} 24... Nf4 {[%clk 0:01:45.6]}
25. Red2 {[%clk 0:01:04.2]} 25... Rd8 {[%clk 0:01:44.3]} 26. Bf1 {[%clk
0:00:53.4]} 26... Bg3 {[%clk 0:01:41.4]} 27. Rc2 {[%clk 0:00:50.3]} 27... e4
{[%clk 0:01:41.9]} 28. c5 {[%clk 0:00:48.1]} 28... exf3 {[%clk 0:01:07.5]} 29.
gxf3 {[%clk 0:00:48.4]} 29... h3 {[%clk 0:01:08.8]} 30. Bc4 {[%clk 0:00:39.1]}
30... h2 {[%clk 0:01:05.4]} 31. c6 {[%clk 0:00:35.9]} 31... b6 {[%clk
0:01:03.7]} 32. Nb7 {[%clk 0:00:35.4]} 32... Rf8 {[%clk 0:00:45.4]} 33. Nxd6
{[%clk 0:00:32.7]} 33... Nh3 {[%clk 0:00:23.6]} 34. Nxf5 {[%clk 0:00:20.1]}
34... gxf5 {[%clk 0:00:22.5]} 35. d6+ {[%clk 0:00:21.4]} 35... Kg7 {[%clk
0:00:21.4]} 36. dxc7 {[%clk 0:00:22.1]} 36... Ng1 {[%clk 0:00:23]} 37. Rxh2
{[%clk 0:00:19.8]} 37... Bxh2 {[%clk 0:00:24.9]} 38. Rd7+ {[%clk 0:00:18.7]}
38... Kf6 {[%clk 0:00:19.9]} 39. Rd8 {[%clk 0:00:19.8]} 39... Bxc7 {[%clk
0:00:20.3]} 40. Rxf8+ {[%clk 0:00:20.9]} 40... Ke5 {[%clk 0:00:21.4]} 41. Bxa6
{[%clk 0:00:19.3]} 41... Nxf3 {[%clk 0:00:21.5]} 42. Rf7 {[%clk 0:00:17.5]}
42... Kd6 {[%clk 0:00:21.1]} 43. Rxf5 {[%clk 0:00:17.7]} 43... Nd4 {[%clk
0:00:20.8]} 44. Rf6+ {[%clk 0:00:16.9]} 44... Ke5 {[%clk 0:00:21]} 45. Rh6
{[%clk 0:00:17.3]} 45... Kd5 {[%clk 0:00:22]} 46. Bb7 {[%clk 0:00:17.8]} 46...
Nf5 {[%clk 0:00:19.6]} 47. Rh5 {[%clk 0:00:13.3]} 47... Ke4 {[%clk 0:00:20.1]}
48. b5 {[%clk 0:00:12.2]} 48... Ne3 {[%clk 0:00:17.7]} 49. Rh7 {[%clk
0:00:12.9]} 49... Nd5 {[%clk 0:00:18.9]} 50. a5 {[%clk 0:00:11.7]} 50... bxa5
{[%clk 0:00:19.3]} 51. Bc8 {[%clk 0:00:12.3]} 51... Ke5 {[%clk 0:00:18.2]} 52.
Rh5+ {[%clk 0:00:12.6]} 52... Kd6 {[%clk 0:00:19.1]} 53. Bf5 {[%clk 0:00:12.7]}
53... Nc3+ {[%clk 0:00:19.1]} 54. Kc2 {[%clk 0:00:13]} 54... Nxb5 {[%clk
0:00:21]} 55. Bd7 {[%clk 0:00:12.8]} 55... Na7 {[%clk 0:00:17.5]} 56. Rh6+
{[%clk 0:00:12]} 56... Kc5 {[%clk 0:00:18.3]} 57. Rh5+ {[%clk 0:00:12.9]} 57...
Kb6 {[%clk 0:00:19.8]} 58. Kb3 {[%clk 0:00:14]} 1/2-1/2

[Event "*** Qualifier 3: Titled Tuesday 3|2 Blitz"]
[Site "Chess.com"]
[Date "2017.04.18"]
[Round "1"]
[White "Marcus_Harvey"]
[Black "cheese111"]
[Result "0-1"]
[WhiteElo "2507"]
[BlackElo "2250"]
[TimeControl "180+2"]
[EndTime "13:09:56 PDT"]
[Termination "cheese111 won by resignation"]

1. Nf3 {[%clk 0:02:47.9]} 1... Nf6 {[%clk 0:03:00.3]} 2. b3 {[%clk 0:02:48.5]}
2... g6 {[%clk 0:03:01.2]} 3. Bb2 {[%clk 0:02:49.9]} 3... Bg7 {[%clk 0:03:02.4]}
4. e3 {[%clk 0:02:51.5]} 4... O-O {[%clk 0:03:03]} 5. Be2 {[%clk 0:02:53.1]}
5... d6 {[%clk 0:03:03.4]} 6. d4 {[%clk 0:02:54.4]} 6... e5 {[%clk 0:03:03.5]}
7. dxe5 {[%clk 0:02:55.1]} 7... Ng4 {[%clk 0:03:04.4]} 8. O-O {[%clk 0:02:56.4]}
8... Nc6 {[%clk 0:03:04.1]} 9. c4 {[%clk 0:02:56.3]} 9... Ngxe5 {[%clk
0:03:04.4]} 10. Nxe5 {[%clk 0:02:57.4]} 10... Nxe5 {[%clk 0:03:05.4]} 11. Nc3
{[%clk 0:02:58.2]} 11... Be6 {[%clk 0:03:04.8]} 12. f4 {[%clk 0:02:55.1]} 12...
Nd7 {[%clk 0:02:56.2]} 13. Bf3 {[%clk 0:02:54]} 13... Rb8 {[%clk 0:02:27.1]} 14.
Qd2 {[%clk 0:02:44.9]} 14... Nc5 {[%clk 0:02:27.5]} 15. Rad1 {[%clk 0:02:33.5]}
15... a5 {[%clk 0:02:25.2]} 16. e4 {[%clk 0:02:25.7]} 16... Re8 {[%clk
0:02:24.4]} 17. Rfe1 {[%clk 0:02:26.6]} 17... Qh4 {[%clk 0:02:17.6]} 18. g3
{[%clk 0:02:26.4]} 18... Qh3 {[%clk 0:02:12.5]} 19. Nd5 {[%clk 0:02:14.7]} 19...
Bxd5 {[%clk 0:02:11.1]} 20. cxd5 {[%clk 0:02:07.9]} 20... Qd7 {[%clk 0:01:44.2]}
21. e5 {[%clk 0:02:05.9]} 21... dxe5 {[%clk 0:01:25.9]} 22. fxe5 {[%clk
0:02:05]} 22... Qf5 {[%clk 0:01:27.3]} 23. Qe3 {[%clk 0:01:54.8]} 23... Bxe5
{[%clk 0:01:04.6]} 24. Bxe5 {[%clk 0:01:50.8]} 24... Nd7 {[%clk 0:01:05.3]} 25.
Qf4 {[%clk 0:00:33.9]} 25... Rxe5 {[%clk 0:01:01.3]} 26. d6 {[%clk 0:00:33]}
26... cxd6 {[%clk 0:00:41]} 27. Qxf5 {[%clk 0:00:32.6]} 27... gxf5 {[%clk
0:00:35.9]} 28. Kf2 {[%clk 0:00:29.6]} 28... Rxe1 {[%clk 0:00:31.5]} 29. Kxe1
{[%clk 0:00:29.5]} 29... Ne5 {[%clk 0:00:31]} 30. Kf2 {[%clk 0:00:29.1]} 30...
Nxf3 {[%clk 0:00:21.2]} 31. Kxf3 {[%clk 0:00:29.5]} 31... Rc8 {[%clk 0:00:23.1]}
32. Rxd6 {[%clk 0:00:28.7]} 32... Rc2 {[%clk 0:00:22.5]} 33. Rd5 {[%clk
0:00:27.2]} 33... Rxa2 {[%clk 0:00:22.5]} 34. h4 {[%clk 0:00:27.9]} 34... Ra3
{[%clk 0:00:20.3]} 35. Kf4 {[%clk 0:00:24.9]} 35... Rxb3 {[%clk 0:00:20.7]} 36.
Rxa5 {[%clk 0:00:26.2]} 36... Kf8 {[%clk 0:00:15.1]} 37. h5 {[%clk 0:00:25.3]}
37... h6 {[%clk 0:00:14.9]} 38. Rxf5 {[%clk 0:00:23.6]} 38... b5 {[%clk
0:00:15.6]} 39. Rc5 {[%clk 0:00:24.4]} 39... b4 {[%clk 0:00:16]} 40. Rc6 {[%clk
0:00:25.6]} 40... Kg7 {[%clk 0:00:16.1]} 41. Rb6 {[%clk 0:00:26.6]} 41... Rb1
{[%clk 0:00:16.7]} 42. Kg4 {[%clk 0:00:24.2]} 42... b3 {[%clk 0:00:15.5]} 43.
Rb7 {[%clk 0:00:20.7]} 43... b2 {[%clk 0:00:14.5]} 44. Rb6 {[%clk 0:00:22]}
44... Kf8 {[%clk 0:00:14]} 45. Rb7 {[%clk 0:00:23.1]} 45... Ke8 {[%clk
0:00:14.8]} 46. Rb6 {[%clk 0:00:23.9]} 46... Ke7 {[%clk 0:00:14.8]} 47. Rb5
{[%clk 0:00:25.2]} 47... Ke6 {[%clk 0:00:15.3]} 48. Rb6+ {[%clk 0:00:26.3]}
48... Kd7 {[%clk 0:00:14.4]} 49. Rb5 {[%clk 0:00:27.1]} 49... f5+ {[%clk
0:00:13.8]} 50. Kxf5 {[%clk 0:00:18.6]} 50... Rf1+ {[%clk 0:00:15]} 51. Kg6
{[%clk 0:00:19.9]} 51... b1=Q+ {[%clk 0:00:16.8]} 52. Rxb1 {[%clk 0:00:21.2]}
52... Rxb1 {[%clk 0:00:18.1]} 53. Kxh6 {[%clk 0:00:23]} 53... Rg1 {[%clk
0:00:10.6]} 54. Kg7 {[%clk 0:00:13.4]} 54... Ke7 {[%clk 0:00:11.2]} 55. h6
{[%clk 0:00:12.9]} 55... Rxg3+ {[%clk 0:00:11.9]} 56. Kh8 {[%clk 0:00:14.2]}
56... Kf6 {[%clk 0:00:09.7]} 57. Kh7 {[%clk 0:00:12.1]} 57... Rh3 {[%clk
0:00:10.3]} 0-1